bitfinex-derivatives/quotes_BTCF0:USTF0_20250320
["timestamp","ask_amount","ask_price","bid_price","bid_amount"]
[1742484675354,0.00917531,85546.0,85545.0,0.6875219]
[1742484675550,0.12611581,85546.0,85545.0,2.1875219]
[1742484675749,0.00917531,85546.0,85545.0,2.1875219]
[1742484675948,0.12848,85575.0,85545.0,0.5820433]
[1742484676141,0.0584627,85558.0,85555.0,0.0584635]
[1742484676345,0.1169255,85557.0,85556.0,0.56848]
[1742484676843,0.1169255,85557.0,85556.0,0.6854069]
[1742484677854,0.1189255,85557.0,85556.0,0.56844]
[1742484678050,0.1189255,85557.0,85556.0,0.6853669]
[1742484678256,0.00017531,85565.0,85564.0,0.1169159]
[1742484678450,0.11708991,85565.0,85564.0,0.6061559]
[1742484678649,0.11708991,85565.0,85564.0,1.0461559]
[1742484678950,0.1169269,85556.0,85555.0,0.1169271]
[1742484679157,0.1169269,85556.0,85555.0,0.2453671]
[1742484679656,0.1169269,85556.0,85555.0,0.4551671]
[1742484679852,0.1169269,85556.0,85555.0,0.2098]
[1742484680050,0.1169269,85556.0,85555.0,0.4551682]
[1742484680350,0.1169269,85556.0,85555.0,0.6727682]
[1742484681253,0.1169269,85556.0,85555.0,0.4274]
[1742484681458,0.1169364,85549.0,85548.0,0.00017531]
[1742484681653,0.1169364,85549.0,85548.0,0.12861531]
[1742484681861,0.1169364,85549.0,85548.0,0.00017531]
[1742484682153,0.1169364,85549.0,85548.0,0.24555311]
[1742484682679,0.1169364,85549.0,85548.0,0.12861531]
[1742484682856,0.3458364,85549.0,85548.0,0.12861531]
[1742484683043,0.3498364,85549.0,85548.0,0.00017531]
[1742484683450,0.3508364,85549.0,85548.0,0.00017531]
[1742484683653,0.3508364,85549.0,85548.0,0.11711311]
[1742484683943,0.3508364,85549.0,85548.0,0.54381311]
[1742484684148,0.3508364,85549.0,85548.0,0.42687531]
[1742484684149,0.1219364,85549.0,85548.0,0.42687531]
[1742484684458,0.1219364,85549.0,85548.0,0.00017531]
[1742484684849,0.9294364,85549.0,85548.0,0.00017531]
[1742484685157,1.16976268,85549.0,85548.0,0.00017531]
[1742484685355,1.16976268,85549.0,85548.0,1e-08]
[1742484685663,0.1169611,85531.0,85530.0,0.5869]
[1742484686750,0.1169652,85528.0,85527.0,4e-05]
[1742484687054,0.0584891,85519.0,85508.0,0.1284]
[1742484687259,0.1169857,85513.0,85509.0,0.2134]
[1742484687851,0.2158,85514.0,85513.0,0.1169857]
[1742484688055,0.3327843,85514.0,85513.0,0.5725857]
[1742484688363,0.1754752,85516.0,85515.0,0.175471]
[1742484688755,0.1754752,85516.0,85515.0,0.303911]
[1742484689063,0.1199843,85514.0,85513.0,0.4556]
[1742484689547,0.1169857,85513.0,85512.0,0.28789694]
[1742484689752,0.5441857,85513.0,85512.0,0.28789694]
[1742484690564,0.1199843,85514.0,85513.0,0.1169857]
[1742484690754,0.1199843,85514.0,85513.0,0.6915857]
[1742484691149,0.1169843,85514.0,85513.0,0.98409499]
[1742484691361,0.0614912,85516.0,85515.0,0.1169829]
[1742484691562,0.1169843,85514.0,85513.0,0.86770929]
[1742484691760,0.1169843,85514.0,85513.0,0.86710929]
[1742484691949,0.1199843,85514.0,85513.0,0.80861769]
[1742484692152,0.1169857,85513.0,85512.0,0.00875211]
[1742484692358,0.1169898,85510.0,85509.0,4e-05]
[1742484692655,0.1169911,85509.0,85508.0,0.4341]
[1742484692854,0.1169911,85509.0,85508.0,0.56254]
[1742484693062,0.1169911,85509.0,85508.0,0.56258]
[1742484693267,0.1169911,85509.0,85508.0,0.35138]
[1742484693464,0.1169911,85509.0,85508.0,0.00894795]
[1742484693972,0.1169911,85509.0,85508.0,0.00890795]
[1742484694160,0.116998,85504.0,85503.0,0.12844]
[1742484694359,0.116998,85504.0,85503.0,0.57540511]
[1742484694658,0.001,85509.0,85508.0,0.1169925]
[1742484694854,0.001,85509.0,85508.0,0.4777925]
[1742484695058,0.001,85509.0,85508.0,0.6062325]
[1742484695261,0.1209911,85509.0,85508.0,2.5419325]
[1742484695568,0.004,85509.0,85508.0,2.5419325]
[1742484696068,0.1169911,85509.0,85508.0,2.5419325]
[1742484696272,0.1179911,85509.0,85508.0,2.5419325]
[1742484696570,0.116989,85514.0,85513.0,0.2339644]
[1742484696756,0.1754859,85511.0,85510.0,0.0584948]
[1742484696956,0.1169896,85511.0,85510.0,0.1169898]
[1742484697169,0.0584948,85511.0,85510.0,0.1169898]
[1742484697569,0.1169911,85509.0,85508.0,2.42654]
[1742484697860,0.1169911,85509.0,85508.0,2.5419725]
[1742484698271,0.1774845,85511.0,85510.0,0.1169898]
[1742484698756,0.1774845,85511.0,85508.0,2.5425712]
[1742484698757,0.0584838,85527.0,85508.0,2.4840756]
[1742484699071,0.11715011,85521.0,85520.0,0.4777761]
[1742484699266,0.00017541,85521.0,85520.0,0.6061761]
[1742484699567,0.17194039,85541.0,85531.0,0.1169611]
[1742484699754,0.19562848,85536.0,85531.0,0.6061611]
[1742484699955,0.21941249,85532.0,85531.0,0.9328]
[1742484700155,0.21941249,85532.0,85531.0,0.3608]
[1742484700369,0.65971249,85532.0,85531.0,0.1284]
[1742484701064,0.54275279,85532.0,85531.0,0.1284]
[1742484701264,0.32625279,85532.0,85531.0,0.2453611]
[1742484701662,0.10545279,85532.0,85531.0,0.2453611]
[1742484701857,0.1199597,85532.0,85531.0,0.2453611]
[1742484702062,0.007,85532.0,85531.0,0.6855611]
[1742484702270,0.1239597,85532.0,85531.0,0.6855611]
[1742484702869,0.009,85532.0,85531.0,0.6865611]
[1742484703071,0.1259597,85532.0,85531.0,0.6865611]
[1742484703267,0.1259597,85532.0,85531.0,0.4412]
[1742484703569,0.3428597,85532.0,85531.0,0.5686]
[1742484703871,0.5547597,85532.0,85531.0,0.5686]
[1742484704169,0.1199597,85532.0,85531.0,0.6855611]
[1742484704371,0.1239597,85532.0,85531.0,0.6855611]
[1742484704964,0.003,85532.0,85531.0,0.6855611]
[1742484705266,0.10245279,85541.0,85538.0,0.0584757]
[1742484705473,0.13715078,85547.0,85533.0,0.0584785]
[1742484705474,0.25408998,85547.0,85546.0,0.1169405]
[1742484705674,0.25408998,85547.0,85546.0,0.6061405]
[1742484706264,0.25408998,85547.0,85546.0,0.94508556]
[1742484707069,0.68688998,85547.0,85546.0,1.06202606]
[1742484707771,0.14115078,85547.0,85546.0,1.06202606]
[1742484707965,0.005,85547.0,85546.0,1.06202606]
[1742484708466,0.005,85547.0,85546.0,1.07331803]
[1742484708659,0.00017541,85555.0,85554.0,0.1169296]
[1742484708862,0.00017541,85555.0,85554.0,0.6060896]
[1742484709064,0.11710361,85555.0,85554.0,0.6060896]
[1742484709267,0.11710361,85555.0,85554.0,2.43156]
[1742484709665,0.11710361,85555.0,85554.0,0.93156]
[1742484709873,0.11710361,85555.0,85554.0,0.70926]
[1742484712272,0.116931,85553.0,85552.0,4e-05]
[1742484712471,0.116931,85553.0,85536.0,0.00072]
[1742484712472,0.0584728,85543.0,85536.0,0.00072]
[1742484712688,0.4777528,85537.0,85525.0,0.00064]
[1742484712866,0.1169788,85518.0,85517.0,0.27914483]
[1742484713475,0.1169788,85518.0,85517.0,0.71944483]
[1742484713771,0.1169788,85518.0,85517.0,0.83642503]
[1742484714163,0.0584887,85520.0,85517.0,0.89491443]
[1742484714369,0.1754675,85520.0,85519.0,0.1169775]
[1742484714771,0.1169715,85524.0,85521.0,0.058487]
[1742484715073,0.00017541,85526.0,85524.0,0.1169706]
[1742484715271,0.1754466,85532.0,85531.0,0.0584797]
[1742484715476,0.1754466,85532.0,85531.0,0.1867997]
[1742484715676,0.0584786,85534.0,85533.0,0.1169583]
[1742484715871,0.1169572,85537.0,85532.0,0.2249]
[1742484716076,0.28889739,85534.0,85533.0,0.0584791]
[1742484716277,0.28889739,85534.0,85533.0,0.2249]
[1742484716476,0.73179739,85534.0,85533.0,0.2249]
[1742484716871,0.73179739,85534.0,85533.0,0.35322]
[1742484717272,0.73179739,85534.0,85525.0,0.0584844]
[1742484717273,0.1169665,85527.0,85522.0,0.0584865]
[1742484717582,0.1169665,85527.0,85525.0,0.12832]
[1742484718575,0.55300278,85527.0,85525.0,0.12832]
[1742484718782,0.5467665,85527.0,85526.0,0.00117541]
[1742484719173,0.5497665,85527.0,85526.0,0.00117541]
[1742484719584,0.5447665,85527.0,85526.0,0.21097541]
[1742484719783,0.5497665,85527.0,85526.0,0.21197541]
[1742484720283,0.009,85527.0,85526.0,0.32894331]
[1742484720486,0.009,85527.0,85526.0,0.76714331]
[1742484720487,0.1259665,85527.0,85526.0,0.76714331]
[1742484720785,0.1259665,85527.0,85526.0,0.12949541]
[1742484721079,0.1259665,85527.0,85526.0,0.00117541]
[1742484721585,0.5579665,85527.0,85526.0,0.00117541]
[1742484723794,0.5579665,85527.0,85503.0,0.06741934]
[1742484723795,0.1169925,85508.0,85500.0,0.105]
[1742484723977,0.1170308,85480.0,85479.0,0.65705613]
[1742484724289,0.1170308,85480.0,85479.0,0.67980463]
[1742484724586,0.1170308,85480.0,85479.0,0.66834483]
[1742484725083,0.1170308,85480.0,85479.0,0.17922483]
[1742484725273,0.5432308,85480.0,85479.0,0.17922483]
[1742484725475,0.1110377,85475.0,85471.0,0.00017541]
[1742484726079,0.4262,85480.0,85479.0,0.1170322]
[1742484726272,0.00088001,85499.0,85487.0,0.1170213]
[1742484726481,0.3608,85502.0,85493.0,0.117011]
[1742484726781,0.3608,85515.0,85500.0,0.0585016]
[1742484726980,0.1170007,85502.0,85501.0,1.85602]
[1742484727383,0.1170007,85502.0,85501.0,1.8447021]
[1742484727585,0.1170007,85502.0,85501.0,1.85602]
[1742484727784,0.00017541,85510.0,85501.0,1.9145204]
[1742484727988,0.00017541,85510.0,85509.0,0.1169911]
[1742484728182,0.1169911,85509.0,85508.0,0.4465]
[1742484728379,0.3396911,85509.0,85508.0,0.4465]
[1742484728690,0.1170007,85502.0,85501.0,0.0006]
[1742484728880,0.1170007,85502.0,85497.0,4e-05]
[1742484728881,0.1170035,85500.0,85499.0,0.3608]
[1742484729388,0.003,85502.0,85501.0,0.1170021]
[1742484730279,0.1169966,85505.0,85504.0,0.116998]
[1742484730478,0.1169966,85505.0,85504.0,0.245598]
[1742484731392,0.1169994,85503.0,85502.0,0.4268]
[1742484731689,0.005,85509.0,85508.0,0.1169925]
[1742484731888,0.005,85509.0,85508.0,0.4777925]
[1742484732080,0.00017541,85510.0,85509.0,0.1169911]
[1742484732481,0.00017541,85510.0,85509.0,0.7694911]
[1742484733096,0.28455519,85542.0,85511.0,0.0584938]
[1742484733388,0.1169699,85525.0,85523.0,0.477772]
[1742484733583,0.1169693,85525.0,85523.0,0.606492]
[1742484733893,0.2837783,85535.0,85523.0,0.606492]
[1742484734094,0.1754469,85531.0,85530.0,0.0584805]
[1742484734288,0.1754469,85531.0,85530.0,0.4192805]
[1742484734788,0.1754469,85531.0,85530.0,0.811]
[1742484734994,0.6116469,85531.0,85530.0,0.811]
[1742484735210,0.6116469,85531.0,85530.0,0.3608]
[1742484735695,0.6166469,85531.0,85530.0,0.3608]
[1742484735892,0.1804469,85531.0,85530.0,0.811]
[1742484736396,0.2902813,85531.0,85530.0,0.9279624]
[1742484736697,0.1219611,85531.0,85530.0,0.9279624]
[1742484737186,0.1269611,85531.0,85530.0,0.811]
[1742484737698,0.5837611,85531.0,85530.0,0.811]
[1742484737886,0.5837611,85531.0,85530.0,0.9279624]
[1742484738086,0.5837611,85531.0,85530.0,0.811]
[1742484738987,0.5837611,85531.0,85530.0,0.4502]
[1742484739292,0.1169665,85527.0,85526.0,4e-05]
[1742484739688,0.058487,85522.0,85513.0,0.12864]
[1742484739999,0.058487,85522.0,85507.0,0.37217643]
[1742484740000,0.1169816,85516.0,85507.0,0.3608]
[1742484740197,0.1169816,85516.0,85508.0,0.2182]
[1742484740786,0.3317816,85516.0,85509.0,0.1169904]
[1742484740993,0.058487,85522.0,85515.0,0.12913541]
[1742484741298,0.1169788,85519.0,85518.0,0.0584888]
[1742484741498,0.1169788,85519.0,85518.0,0.433]
[1742484741688,0.5468788,85519.0,85518.0,0.433]
[1742484741889,0.3317788,85519.0,85518.0,0.433]
[1742484742090,0.3317788,85519.0,85518.0,0.5499788]
[1742484742091,0.1169788,85519.0,85518.0,0.5499788]
[1742484742715,0.003,85522.0,85518.0,0.433]
[1742484743003,0.003,85522.0,85521.0,0.1169747]
[1742484743302,0.05865581,85532.0,85531.0,0.1169611]
[1742484743303,0.00017541,85532.0,85531.0,0.1169611]
[1742484743502,0.0584743,85541.0,85540.0,0.1169448]
[1742484743687,0.0584743,85541.0,85540.0,0.2460248]
[1742484743893,0.1169454,85543.0,85542.0,0.1169446]
[1742484744100,0.1169431,85545.0,85544.0,0.1169419]
[1742484744406,0.38085429,85551.0,85550.0,0.1169351]
[1742484744605,0.20544979,85551.0,85550.0,0.2460151]
[1742484744904,0.32238349,85551.0,85550.0,0.2460151]
[1742484745103,0.05864091,85553.0,85552.0,0.1169323]
[1742484745309,0.4192483,85579.0,85560.0,0.1169214]
[1742484745514,0.2286,85573.0,85565.0,0.1169146]
[1742484745706,0.39278135,85566.0,85565.0,0.1169146]
[1742484746995,0.1169187,85562.0,85561.0,0.4198]
[1742484747196,0.1169187,85562.0,85561.0,0.66572]
[1742484748509,0.1169168,85564.0,85563.0,0.1169159]
[1742484749013,0.1169168,85564.0,85563.0,0.5423159]
[1742484749305,0.1169168,85564.0,85563.0,0.4254]
[1742484749805,0.1169168,85564.0,85563.0,0.5423173]
[1742484750013,0.1219168,85564.0,85563.0,0.5423173]
[1742484750233,0.005,85564.0,85563.0,0.5423173]
[1742484750398,0.1169187,85562.0,85561.0,4e-05]
[1742484750906,0.2186,85563.0,85557.0,0.00017531]
[1742484750907,0.1169241,85558.0,85557.0,0.00017531]
[1742484751098,0.4777241,85558.0,85557.0,0.00017531]
[1742484752704,0.4827241,85558.0,85557.0,0.00017531]
[1742484752907,0.1219241,85558.0,85557.0,0.00017531]
[1742484753697,0.1269241,85558.0,85557.0,0.00017531]
[1742484755308,0.4877241,85558.0,85557.0,0.00017531]
[1742484756508,0.1169282,85555.0,85554.0,1e-08]
[1742484756711,0.1169638,85529.0,85521.0,0.37238876]
[1742484756904,0.116972,85523.0,85522.0,0.34982]
[1742484757507,0.116972,85523.0,85522.0,0.2209]
[1742484758416,0.1169534,85537.0,85523.0,0.116972]
[1742484758617,0.1169528,85537.0,85536.0,0.4192764]
[1742484758808,0.1169528,85537.0,85536.0,0.5484364]
[1742484759203,0.1169528,85537.0,85536.0,0.48996]
[1742484759405,0.3608,85537.0,85517.0,0.0584896]
[1742484759604,0.3608,85537.0,85521.0,0.56192]
[1742484759605,0.1169734,85522.0,85521.0,0.56192]
[1742484760411,0.5381734,85522.0,85521.0,0.56192]
[1742484761016,0.1169734,85522.0,85521.0,0.6788947]
[1742484761211,0.1754569,85527.0,85526.0,0.058483]
[1742484761612,0.1169734,85522.0,85521.0,0.6788946]
[1742484761807,0.1169734,85522.0,85521.0,0.345]
[1742484762013,0.1199734,85522.0,85521.0,0.4619747]
[1742484762319,0.1199734,85522.0,85521.0,1.84492]
[1742484762621,0.5475734,85522.0,85521.0,1.84492]
[1742484762818,0.5475734,85522.0,85521.0,0.34492]
[1742484763205,0.4306,85522.0,85521.0,0.3329747]
[1742484763519,0.0584733,85542.0,85534.0,0.1169545]
[1742484763711,0.1169542,85536.0,85535.0,1.8452]
[1742484764410,0.1169542,85536.0,85535.0,1.7162]
[1742484764719,0.1169734,85522.0,85521.0,0.1169747]
[1742484764916,0.1219734,85522.0,85521.0,0.12888]
[1742484765108,0.1219734,85522.0,85521.0,0.6066547]
[1742484765310,0.1219734,85522.0,85521.0,0.12888]
[1742484765617,0.2303,85527.0,85525.0,0.1754525]
[1742484765813,0.003,85536.0,85521.0,0.4896]
[1742484765814,0.058479,85534.0,85533.0,0.1169562]
[1742484766015,0.1754395,85534.0,85533.0,0.1169562]
[1742484766221,0.1169597,85532.0,85531.0,0.0584803]
[1742484766410,0.4488,85535.0,85531.0,0.0584803]
[1742484766411,0.005,85536.0,85533.0,0.0584791]
[1742484766717,0.1169556,85535.0,85534.0,0.330557]
[1742484766921,0.4502,85535.0,85522.0,0.2720854]
[1742484767110,0.116972,85523.0,85522.0,0.2136]
[1742484767512,0.116972,85523.0,85522.0,0.3305734]
[1742484767816,0.116972,85523.0,85522.0,0.6913734]
[1742484768025,0.058483,85528.0,85527.0,0.1169665]
[1742484768319,0.0584798,85532.0,85531.0,0.0584805]
[1742484768514,0.1169611,85531.0,85530.0,0.2116]
[1742484768826,0.1169611,85531.0,85530.0,0.3285624]
[1742484769028,0.1209601,85532.0,85531.0,0.1169611]
[1742484769214,0.1169601,85532.0,85531.0,0.5483611]
[1742484769519,0.1169601,85532.0,85531.0,0.6771211]
[1742484770024,0.1754348,85536.0,85535.0,0.1169518]
[1742484770220,0.1754348,85536.0,85535.0,0.5724]
[1742484770422,0.1754348,85536.0,85535.0,0.6893556]
[1742484770919,0.1169665,85527.0,85525.0,0.1169682]
[1742484771107,0.1169665,85527.0,85526.0,0.34806]
[1742484771521,0.1169665,85527.0,85526.0,0.4650279]
[1742484772022,0.175446,85531.0,85530.0,0.0584805]
[1742484772325,0.004,85532.0,85531.0,0.1169611]
[1742484772517,0.004,85532.0,85531.0,0.3364611]
[1742484772731,0.0584745,85540.0,85537.0,0.0584757]
[1742484772732,0.1169553,85538.0,85537.0,0.0584757]
[1742484772919,0.1169553,85538.0,85537.0,0.1868757]
[1742484773422,0.1754204,85542.0,85541.0,0.116946]
[1742484773925,0.22998221,85552.0,85544.0,0.1169433]
[1742484774125,0.17151561,85552.0,85544.0,0.1169433]
[1742484774319,0.1169474,85541.0,85540.0,0.3608]
[1742484774724,0.3343474,85541.0,85540.0,0.4777487]
[1742484775116,0.1169474,85541.0,85540.0,0.4777487]
[1742484775725,0.1199474,85541.0,85540.0,0.6937487]
[1742484775922,0.1199474,85541.0,85540.0,0.70529946]
[1742484776432,0.116957,85534.0,85533.0,0.00017531]
[1742484777022,0.542557,85534.0,85533.0,0.00017531]
[1742484778921,0.547557,85534.0,85533.0,0.11713361]
[1742484779123,0.549557,85534.0,85533.0,0.00017531]
[1742484779632,0.007,85534.0,85533.0,0.11713361]
[1742484779924,0.118957,85534.0,85533.0,0.00017531]
[1742484780250,0.007,85534.0,85533.0,0.47793361]
[1742484780428,0.123957,85534.0,85533.0,0.70223361]
[1742484780627,0.123957,85534.0,85533.0,0.58527531]
[1742484781323,0.337757,85534.0,85533.0,0.35287531]
[1742484782030,0.335757,85534.0,85533.0,0.35287531]
[1742484782530,0.554257,85534.0,85533.0,0.35287531]
[1742484782719,0.557257,85534.0,85533.0,0.35287531]
[1742484783028,0.008,85534.0,85533.0,0.46983361]
[1742484783224,0.124957,85534.0,85533.0,0.46983361]
[1742484783620,0.124957,85534.0,85533.0,0.35287531]
[1742484783817,0.124957,85534.0,85533.0,0.68833361]
[1742484784028,0.124957,85534.0,85533.0,0.57137531]
[1742484784227,0.573957,85534.0,85533.0,0.57137531]
[1742484784422,0.354457,85534.0,85533.0,0.57137531]
[1742484785029,0.573957,85534.0,85533.0,0.57137531]
[1742484785725,0.573957,85534.0,85533.0,0.00017531]
[1742484786127,0.58590621,85534.0,85533.0,0.00017531]
[1742484786437,0.573957,85534.0,85533.0,0.00017531]
[1742484786726,0.573957,85534.0,85533.0,0.42937531]
[1742484786933,0.008,85534.0,85533.0,0.67465361]
[1742484787120,0.17257093,85545.0,85533.0,0.67465361]
[1742484787121,0.17169092,85545.0,85544.0,0.1169433]
[1742484787427,0.28863282,85545.0,85544.0,0.48912]
[1742484787632,0.17169092,85545.0,85544.0,0.6060633]
[1742484787832,0.28863282,85545.0,85544.0,0.6060633]
[1742484788032,0.28863282,85545.0,85544.0,1.0411633]
[1742484788235,0.28863282,85545.0,85544.0,0.92422]
[1742484788528,0.73353282,85545.0,85544.0,0.92422]
[1742484788831,0.73853282,85545.0,85544.0,1.0411633]
[1742484789035,0.17669092,85545.0,85544.0,1.0411633]
[1742484789530,0.29663282,85545.0,85544.0,1.0411633]
[1742484790531,0.17969092,85545.0,85544.0,1.0411633]
[1742484791234,0.24012186,85563.0,85552.0,0.1169323]
[1742484791532,0.3608,85583.0,85552.0,0.1169323]
[1742484791533,0.00096001,85599.0,85562.0,0.3608]
[1742484791729,0.1168832,85588.0,85587.0,0.3608]
[1742484791934,0.1169023,85574.0,85573.0,0.3608]
[1742484792126,0.12788393,85574.0,85573.0,0.3608]
[1742484792434,0.25688393,85574.0,85573.0,0.3608]
[1742484792622,0.1169023,85574.0,85573.0,0.3608]
[1742484792928,0.25700058,85574.0,85573.0,0.3608]
[1742484793140,0.25900058,85574.0,85573.0,0.3608]
[1742484793432,0.25900058,85574.0,85570.0,0.36084]
[1742484793433,0.1169064,85571.0,85570.0,0.36084]
[1742484793628,0.12787144,85571.0,85570.0,4e-05]
[1742484793837,0.1169064,85571.0,85570.0,4e-05]
[1742484795019,0.1169433,85544.0,85543.0,0.20949365]
[1742484795736,0.1169433,85544.0,85543.0,0.19949365]
[1742484796032,0.116946,85542.0,85541.0,4e-05]
[1742484796540,0.00096001,85545.0,85544.0,0.1169433]
[1742484796833,0.1169419,85545.0,85544.0,0.3608]
[1742484797624,0.00017531,85552.0,85551.0,0.1169337]
[1742484797922,0.00017531,85552.0,85551.0,0.4777337]
[1742484797923,0.11710891,85552.0,85551.0,0.4777337]
[1742484798234,0.00017531,85552.0,85551.0,0.4777337]
[1742484798534,0.11710761,85552.0,85551.0,0.4777337]
[1742484798725,0.00017531,85552.0,85551.0,0.9009337]
[1742484799034,0.11710761,85552.0,85551.0,0.784]
[1742484799229,0.11710761,85552.0,85548.0,0.12924]
[1742484799230,0.1169364,85549.0,85548.0,4e-05]
[1742484799728,0.1169419,85545.0,85544.0,0.3608]
[1742484800335,0.1169528,85537.0,85536.0,0.33542]
[1742484800523,0.1169542,85536.0,85535.0,0.00017531]
[1742484800835,0.5327542,85536.0,85535.0,0.00017531]
[1742484801130,0.6619142,85536.0,85535.0,0.00017531]
[1742484801927,0.6619142,85536.0,85535.0,0.00317531]
[1742484802437,0.6619142,85536.0,85535.0,0.00017531]
[1742484802634,0.5377542,85536.0,85535.0,0.00017531]
[1742484802823,0.5377542,85536.0,85535.0,0.21727531]
[1742484803236,0.1219542,85536.0,85535.0,0.21727531]
[1742484803540,0.005,85536.0,85535.0,0.33423091]
[1742484804134,0.005,85536.0,85535.0,0.21727531]
[1742484804135,0.1219542,85536.0,85535.0,0.21727531]
[1742484804329,0.1219542,85536.0,85535.0,1.71727531]
[1742484805239,0.1199542,85536.0,85535.0,1.71727531]
[1742484805838,0.1239542,85536.0,85535.0,1.71727531]
[1742484806731,0.1229542,85536.0,85535.0,0.21727531]
[1742484807323,0.1229542,85536.0,85535.0,0.33423091]
[1742484807528,0.006,85536.0,85535.0,0.33423091]
[1742484807729,0.1229542,85536.0,85535.0,0.33423091]
[1742484808136,0.1209542,85536.0,85535.0,0.33423091]
[1742484808441,0.1229542,85536.0,85535.0,0.33423091]
[1742484809145,0.1189542,85536.0,85535.0,0.33423091]
[1742484809331,0.1219542,85536.0,85535.0,0.21727531]
[1742484809641,0.1209542,85536.0,85535.0,0.00017531]
[1742484810342,0.3338542,85536.0,85535.0,0.00017531]
[1742484810639,0.3338542,85536.0,85535.0,0.36097531]
[1742484811438,0.3338542,85536.0,85535.0,0.00017531]
[1742484811439,0.3328542,85536.0,85535.0,0.00017531]
[1742484811634,0.3338542,85536.0,85535.0,0.36097531]
[1742484811835,0.3338542,85536.0,85533.0,4e-05]
[1742484811836,0.1169816,85516.0,85515.0,0.0006]
[1742484812143,0.1169925,85508.0,85507.0,0.35940931]
[1742484812831,0.1169952,85506.0,85505.0,0.27998612]
[1742484813229,0.1139952,85506.0,85505.0,0.27998612]
[1742484813443,0.5197952,85506.0,85505.0,0.27998612]
[1742484814337,0.5197952,85506.0,85501.0,4e-05]
[1742484814338,0.1170007,85502.0,85501.0,4e-05]
[1742484814535,0.2454007,85502.0,85501.0,4e-05]
[1742484814931,0.0585089,85490.0,85483.0,0.2157]
[1742484815138,0.1170254,85484.0,85483.0,0.2157]
[1742484815929,0.1170391,85474.0,85473.0,0.214]
[1742484816135,0.1170459,85469.0,85468.0,0.0006]
[1742484816331,0.1170417,85473.0,85471.0,0.1170432]
[1742484816536,0.1170404,85473.0,85472.0,0.404]
[1742484816750,0.1150404,85473.0,85472.0,0.5210418]
[1742484817244,0.1110404,85473.0,85472.0,0.5210418]
[1742484817544,0.1110404,85473.0,85472.0,0.52983334]
[1742484817752,0.0585175,85477.0,85473.0,0.0585202]
[1742484817947,0.00017542,85481.0,85478.0,0.1170328]
[1742484818141,0.1170404,85473.0,85472.0,0.00879154]
[1742484818346,0.1170418,85472.0,85471.0,0.4203]
[1742484818533,0.1170418,85472.0,85471.0,0.42897212]
[1742484819450,0.3249418,85472.0,85471.0,0.42897212]
[1742484819640,0.3249418,85472.0,85471.0,0.4203]
[1742484819641,0.5468418,85472.0,85471.0,0.4203]
[1742484820145,0.5468418,85472.0,85465.0,0.00017542]
[1742484820146,0.1755691,85469.0,85468.0,4e-05]
[1742484820344,0.5363691,85469.0,85468.0,4e-05]
[1742484820853,0.11705,85466.0,85465.0,0.00017542]
[1742484821048,0.0585232,85469.0,85466.0,0.0585244]
[1742484821235,0.1270432,85472.0,85471.0,0.1170432]
[1742484821644,0.1270432,85472.0,85471.0,1.6170432]
[1742484821835,0.1270418,85472.0,85471.0,1.6170432]
[1742484822034,0.1270418,85472.0,85471.0,2.1063632]
[1742484822239,0.01,85472.0,85471.0,2.1063632]
[1742484822449,0.004,85472.0,85471.0,2.1063632]
[1742484822748,0.00017542,85481.0,85479.0,0.1170308]
[1742484823047,0.0585028,85499.0,85480.0,0.88868]
[1742484823250,0.11787741,85505.0,85495.0,0.1170103]
[1742484823437,0.0584967,85508.0,85495.0,0.2454903]
[1742484823636,0.2153,85509.0,85495.0,0.6448903]
[1742484823849,0.1170079,85497.0,85495.0,0.6448903]
[1742484824045,0.1170085,85497.0,85495.0,2.1448903]
[1742484824243,0.14161168,85496.0,85495.0,2.1448903]
[1742484824546,0.25862058,85496.0,85495.0,2.1448903]
[1742484824750,0.14161168,85496.0,85495.0,0.6448903]
[1742484825538,0.01188746,85519.0,85503.0,0.1169994]
[1742484825747,0.116998,85506.0,85505.0,0.1169945]
[1742484825955,0.116998,85506.0,85505.0,0.2339889]
[1742484826154,0.1169966,85505.0,85504.0,0.3291974]
[1742484826353,0.1169966,85505.0,85504.0,0.2122]
[1742484827350,0.3196966,85505.0,85504.0,0.2122]
[1742484827559,0.3196966,85505.0,85504.0,0.329198]
[1742484828462,0.002,85505.0,85504.0,0.329198]
[1742484828653,0.002,85505.0,85504.0,0.689998]
[1742484828852,0.0584935,85512.0,85509.0,0.1169899]
[1742484829052,0.1754899,85510.0,85509.0,0.1169899]
[1742484829449,0.1169966,85506.0,85505.0,0.1169958]
[1742484829653,0.1169994,85503.0,85502.0,4e-05]
[1742484829852,0.1170076,85497.0,85492.0,0.12864]
[1742484830060,0.1170076,85497.0,85493.0,0.2001]
[1742484830557,0.1170117,85494.0,85493.0,0.2001]
[1742484830760,0.117013,85493.0,85492.0,0.12864]
[1742484831059,0.0585085,85491.0,85487.0,0.12885542]
[1742484831363,0.1170199,85488.0,85487.0,0.00873424]
[1742484831553,0.1170199,85488.0,85487.0,0.25479554]
[1742484832154,0.1170199,85488.0,85487.0,0.00873424]
[1742484832559,0.1200199,85488.0,85487.0,0.00017542]
[1742484833159,0.1230199,85488.0,85487.0,0.00017542]
[1742484833663,0.1230199,85488.0,85487.0,0.25467093]
[1742484833858,0.1230199,85488.0,85487.0,0.13764963]
[1742484834062,0.1230199,85488.0,85487.0,0.13760963]
[1742484834261,0.1230199,85488.0,85487.0,0.00017542]
[1742484834464,0.3183199,85488.0,85487.0,0.00017542]
[1742484835462,0.1170459,85469.0,85468.0,0.12876]
[1742484835760,0.1170541,85463.0,85462.0,0.32422]
[1742484835960,0.1170541,85463.0,85462.0,0.1955]
[1742484836660,0.1170637,85456.0,85455.0,0.3608]
[1742484836862,0.1170637,85456.0,85455.0,1.8608]
[1742484837056,0.1170637,85456.0,85455.0,2.1733651]
[1742484837359,0.1170637,85456.0,85455.0,0.6733651]
[1742484837766,0.0585257,85466.0,85455.0,0.6148322]
[1742484838064,0.1170514,85468.0,85467.0,0.058524]
[1742484838252,0.1170514,85468.0,85467.0,0.387924]
[1742484838456,0.1170514,85468.0,85467.0,0.3294]
[1742484838657,0.1170514,85468.0,85467.0,0.4464486]
[1742484839360,0.1190514,85468.0,85467.0,0.4464486]
[1742484840566,0.1190514,85468.0,85467.0,0.3294]
[1742484840756,0.3242514,85468.0,85467.0,0.4464486]
[1742484841068,0.002,85468.0,85467.0,0.4464486]
[1742484841563,0.2086,85487.0,85467.0,0.4464486]
[1742484841564,0.0585149,85481.0,85474.0,0.0585194]
[1742484841767,0.1170363,85476.0,85475.0,0.3608]
[1742484842063,0.1170445,85470.0,85469.0,0.1284]
[1742484842360,0.0585191,85475.0,85462.0,0.9674555]
[1742484842361,0.1170541,85463.0,85462.0,0.9674555]